bitfinex/quotes_ETHUSD_20251217
["timestamp","ask_amount","ask_price","bid_price","bid_amount"]
[1765986745466,5.4447,2911.8,2909.7,5.9937]
[1765986745661,0.54447,2911.7,2909.7,5.9937]
[1765986745871,0.46438023,2912.3,2909.5,6.87403332]
[1765986745872,10.0,2913.0,2910.1,2.1508]
[1765986746097,3.4297935,2915.7,2910.1,2.1508]
[1765986746098,5.4447,2914.2,2911.5,2.1508]
[1765986746262,2.2738,2913.8,2911.7,0.46438023]
[1765986746611,2.2738,2913.8,2911.0,9.43380244]
[1765986746612,10.0,2914.6,2912.0,2.1508]
[1765986746903,4.2738,2914.3,2912.4,0.46438023]
[1765986747105,5.4447,2914.4,2909.3,0.05]
[1765986747106,11.02829844,2912.5,2909.3,0.05]
[1765986747264,2.2738,2910.5,2908.7,5.9937]
[1765986747464,2.2738,2910.5,2908.0,2.1508]
[1765986747465,41.02829844,2910.1,2908.0,2.1508]
[1765986747778,41.02829844,2910.1,2907.1,3.43980337]
[1765986747779,4.2738,2909.3,2908.3,0.002]
[1765986747986,2.0,2909.2,2908.3,0.002]
[1765986748165,0.636,2909.1,2908.3,0.002]
[1765986748391,2.0,2909.4,2908.3,0.002]
[1765986748591,0.636,2909.3,2908.3,5.9957]
[1765986748791,2.0,2909.1,2908.3,5.9957]
[1765986749016,2.0,2908.9,2908.3,5.9957]
[1765986749221,2.0,2908.9,2908.3,0.002]
[1765986749421,11.02829844,2908.9,2906.7,2.1508]
[1765986749628,2.0,2908.5,2906.8,5.9937]
[1765986749821,9.02829844,2908.4,2906.8,5.9937]
[1765986750128,2.0,2908.2,2907.1,0.002]
[1765986750353,2.0,2908.0,2907.1,0.002]
[1765986750623,2.0,2907.1,2905.0,9.43603683]
[1765986750849,2.0,2907.1,2905.2,5.9937]
[1765986750989,5.4447,2908.4,2905.5,5.9937]
[1765986750990,2.2738,2907.9,2905.5,5.9937]
[1765986751189,2.637,2907.8,2905.7,5.9937]
[1765986751420,4.2738,2907.3,2905.1,5.9937]
[1765986751616,2.0,2907.1,2905.1,5.9937]
[1765986751824,2.2738,2908.5,2905.8,5.9937]
[1765986752024,2.2738,2908.5,2905.0,17.21170395]
[1765986752025,2.2738,2908.3,2906.1,0.46438023]
[1765986752233,0.637,2908.2,2906.4,2.61518023]
[1765986752430,9.02829844,2909.0,2906.6,0.46438023]
[1765986752618,0.2,2909.1,2906.8,5.9937]
[1765986752831,15.4447,2910.0,2907.0,5.9937]
[1765986752832,5.4447,2909.0,2907.0,5.9937]
[1765986753031,2.2738,2908.8,2907.1,0.46438023]
[1765986753347,0.641,2908.7,2907.0,5.9937]
[1765986753491,0.641,2908.6,2907.0,5.9937]
[1765986753842,0.641,2908.7,2907.2,5.9937]
[1765986754130,0.641,2908.7,2906.5,0.641]
[1765986754131,0.641,2908.6,2906.5,0.641]
[1765986754444,0.641,2908.6,2906.5,5.9937]
[1765986754445,2.2738,2908.4,2906.5,5.9937]
[1765986754756,0.46438023,2909.3,2906.7,5.9937]
[1765986755027,0.641,2909.2,2907.1,5.9937]
[1765986755231,2.2738,2909.5,2907.3,0.46438023]
[1765986755540,0.641,2909.1,2907.3,6.45808023]
[1765986755694,0.55297303,2910.2,2907.5,2.1508]
[1765986755911,2.2738,2911.8,2909.0,2.1508]
[1765986756251,10.0,2913.1,2908.8,10.46438023]
[1765986756252,2.2738,2911.4,2908.8,6.6357]
[1765986756398,25.818,2910.8,2908.7,2.1508]
[1765986756599,12.9158,2910.7,2908.8,3.43784378]
[1765986756798,12.9158,2910.7,2908.8,0.49875866]
[1765986756799,2.9158,2910.7,2908.8,0.49875866]
[1765986757002,0.642,2911.3,2909.2,2.61518023]
[1765986757233,0.07187965,2912.1,2909.2,2.61518023]
[1765986757234,2.2738,2912.5,2909.8,5.9937]
[1765986757397,0.642,2912.4,2910.3,0.46438023]
[1765986757599,0.642,2912.4,2910.8,2.1508]
[1765986757799,0.642,2912.4,2910.5,0.46438023]
[1765986757800,0.07187965,2913.2,2911.3,0.46438023]
[1765986757997,0.07187965,2913.2,2911.0,0.46438023]
[1765986757998,29.4199862,2913.2,2911.0,0.641]
[1765986758237,29.4199862,2913.2,2910.2,0.46438023]
[1765986758238,9.10017809,2912.3,2909.6,5.9937]
[1765986758445,1.7870537,2912.0,2909.7,0.46438023]
[1765986758741,1.7870537,2912.0,2909.3,11.17909844]
[1765986758742,0.07187965,2911.5,2909.4,3.90150961]
[1765986758902,0.07187965,2911.5,2909.5,0.641]
[1765986758903,0.71287965,2911.5,2909.5,0.641]
[1765986759100,0.641,2912.0,2909.7,5.9937]
[1765986759302,0.641,2912.0,2909.8,9.89474254]
[1765986759536,0.641,2912.0,2910.0,2.1508]
[1765986759738,0.07187965,2912.5,2910.4,5.9937]
[1765986759902,0.07187965,2912.5,2910.6,5.9937]
[1765986760100,0.07187965,2912.5,2911.1,5.9937]
[1765986760328,0.001,2913.0,2911.2,0.64]
[1765986760649,0.001,2913.0,2911.6,2.2206]
[1765986760855,0.001,2913.0,2911.7,4.07441975]
[1765986761056,0.001,2913.0,2911.8,5.57484301]
[1765986761215,0.001,2913.0,2910.9,5.5405]
[1765986761416,0.001,2913.0,2911.1,5.5405]
[1765986761742,2.2243,2912.9,2910.8,5.5405]
[1765986761957,0.001,2913.0,2911.6,6.86907542]
[1765986762109,0.001,2913.0,2911.7,6.1805]
[1765986762456,0.001,2913.0,2911.8,0.64]
[1765986762740,19.02829844,2914.5,2911.8,0.64]
[1765986762741,2.2243,2915.2,2912.7,5.5405]
[1765986762940,2.2243,2915.2,2912.8,6.1805]
[1765986762941,2.2243,2915.0,2912.8,6.1805]
[1765986763237,2.2243,2915.0,2912.9,7.7611]
[1765986763238,0.28643,2914.9,2912.9,7.7611]
[1765986763442,3.439,2914.5,2912.4,5.5405]
[1765986763643,3.439,2914.5,2912.0,2.2206]
[1765986763644,9.02829844,2914.4,2912.0,2.2206]
[1765986763833,2.2243,2914.1,2912.1,6.1805]
[1765986764003,10.0,2914.3,2912.4,5.5405]
[1765986764199,2.2243,2914.7,2912.6,5.5405]
[1765986764200,1.23803636,2914.2,2912.6,5.5405]
[1765986764436,0.28643,2914.9,2913.1,5.5405]
[1765986764650,4.4516,2915.6,2913.1,6.86553842]
[1765986764651,9.919,2915.3,2913.1,6.86553842]
[1765986764847,2.2243,2915.6,2913.4,5.5405]
[1765986765051,0.639,2916.2,2913.0,3.43288705]
[1765986765052,2.2243,2915.2,2913.0,3.43288705]
[1765986765341,2.2243,2915.2,2913.5,5.5405]
[1765986765544,9.02829844,2914.3,2911.5,9.70360943]
[1765986765848,4.4516,2913.7,2910.3,3.43604502]
[1765986766140,28.991,2913.1,2911.0,2.2206]
[1765986766309,2.2243,2914.0,2912.0,5.5405]
[1765986766510,2.2243,2914.0,2911.8,9.02829844]
[1765986766511,2.2243,2914.0,2912.1,2.8606]
[1765986766704,2.2243,2914.0,2912.1,7.7611]
[1765986766705,0.405504,2913.9,2912.1,7.7611]
[1765986766939,2.2243,2913.6,2911.5,7.7611]
[1765986767193,30.0,2913.4,2911.5,7.7611]
[1765986767337,18.293,2913.2,2910.8,2.2206]
[1765986767554,2.68868023,2913.0,2911.2,0.639]
[1765986767842,0.405504,2913.4,2911.3,5.5405]
[1765986768004,0.46438023,2913.3,2911.4,0.639]
[1765986768211,2.2243,2914.1,2911.8,5.5405]
[1765986768517,2.2243,2913.4,2911.2,0.46438023]
[1765986768844,4.4516,2913.5,2911.1,5.5405]
[1765986768845,10.46438023,2913.2,2911.3,0.639]
[1765986769009,30.0,2913.0,2911.1,5.5405]
[1765986769206,2.2243,2912.9,2911.1,5.5405]
[1765986769508,2.2243,2912.9,2911.0,0.638]
[1765986769509,2.2243,2912.6,2911.0,0.638]
[1765986769967,2.0742685,2912.8,2910.7,5.5405]
[1765986769968,2.2243,2912.5,2911.1,0.638]
[1765986770244,0.405504,2911.8,2909.5,5.5405]
[1765986770462,2.2243,2909.6,2908.1,0.16913124]
[1765986770607,9.02829844,2909.8,2908.1,0.16913124]
[1765986770608,30.0,2909.3,2908.1,0.16913124]
[1765986770808,2.2243,2909.4,2907.6,0.639]
[1765986771022,0.639,2909.5,2907.9,8.97934871]
[1765986771222,0.639,2909.5,2906.8,0.638]
[1765986771223,4.857104,2908.7,2905.5,5.5405]
[1765986771462,2.2243,2907.9,2905.7,11.20261151]
[1765986771670,2.2243,2907.9,2905.9,7.7611]
[1765986771966,2.2243,2908.5,2906.4,5.5405]
[1765986772171,0.46438023,2909.2,2906.8,5.5405]
[1765986772317,27.509,2908.7,2906.9,0.638]
[1765986772519,2.2243,2908.8,2906.9,0.638]
[1765986772832,7.3139,2909.7,2907.6,7.7611]
[1765986773019,7.3139,2909.7,2906.6,3.51223962]
[1765986773020,2.629804,2909.4,2907.1,8.98033291]
[1765986773221,0.46438023,2909.9,2907.1,8.98033291]
[1765986773222,2.2243,2910.0,2907.7,5.5405]
[1765986773470,2.2243,2911.1,2908.4,9.02829844]
[1765986773615,2.2243,2911.1,2909.1,0.46438023]
[1765986773823,2.2243,2911.1,2909.2,8.3991]
[1765986774134,2.2243,2911.1,2909.2,6.1785]
[1765986774562,0.05,2912.4,2909.4,1.70471074]
[1765986774794,2.2243,2913.7,2911.0,2.68498023]
[1765986774795,4.5016,2913.5,2911.0,2.68498023]
[1765986774965,4.5016,2913.5,2911.1,2.8596]
[1765986774966,30.0,2913.3,2911.1,2.8596]
[1765986775171,4.5016,2913.2,2911.2,5.5405]
[1765986775519,4.5016,2913.2,2911.3,0.639]
[1765986775520,2.2243,2913.0,2911.3,0.639]
[1765986775801,0.22243,2912.9,2911.3,0.639]
[1765986776299,2.44673,2912.9,2911.4,0.638]
[1765986776603,2.2243,2913.8,2911.9,9.02829844]
[1765986776803,0.70987965,2914.3,2912.0,7.50613186]
[1765986777004,30.0,2914.5,2912.4,0.46438023]
[1765986777307,30.0,2914.5,2912.0,10.94019779]
[1765986777308,2.2243,2914.1,2912.5,0.638]
[1765986777467,2.29269,2914.0,2912.5,0.638]
[1765986777668,0.07187965,2913.6,2911.7,5.5405]
[1765986777866,0.07187965,2913.6,2911.9,3.43414469]
[1765986778173,0.07187965,2913.0,2911.9,0.638]
[1765986778376,0.07187965,2913.0,2911.1,5.5405]
[1765986778590,30.0,2912.7,2910.6,2.2206]
[1765986778781,2.2243,2912.3,2910.5,5.5405]
[1765986778986,2.8613,2912.3,2910.5,5.5405]
[1765986779394,0.637,2912.3,2910.6,6.29327536]
[1765986779599,0.637,2912.3,2910.0,3.43636452]
[1765986779783,6.7259,2911.9,2908.7,3.43792933]
[1765986779980,6.7259,2911.9,2909.6,2.2206]
[1765986779981,2.2243,2911.7,2909.6,2.2206]
[1765986780180,2.2243,2911.4,2909.4,5.5405]
[1765986780417,3.905,2911.3,2909.6,9.04756833]
[1765986780624,0.001,2913.6,2911.6,5.5405]
[1765986780828,0.001,2913.6,2911.8,9.04756833]
[1765986780996,2.2253,2913.6,2911.8,3.4343018]
[1765986781184,30.0,2913.5,2911.9,0.49872206]
[1765986781389,2.2253,2913.6,2912.3,5.5405]
[1765986781390,0.001,2913.6,2912.3,5.5405]
[1765986781587,0.001,2913.6,2911.9,0.46438023]
[1765986781588,30.0,2913.5,2911.7,5.5405]
[1765986781898,2.2243,2913.4,2911.8,4.0713018]
[1765986782093,0.001,2914.6,2912.7,9.04756833]
[1765986782309,0.001,2914.6,2913.0,7.7611]
[1765986782544,2.2243,2912.8,2909.2,0.07187965]
[1765986782688,0.405504,2911.3,2909.4,5.5405]
[1765986783025,10.0,2911.0,2909.4,5.5405]
[1765986783325,9.04756833,2912.4,2909.6,5.5405]
[1765986783543,30.0,2911.7,2909.9,0.07187965]
[1765986783681,2.8703,2911.8,2909.9,0.07187965]
[1765986784008,2.8703,2911.8,2909.6,5.5405]
[1765986784009,32.2243,2911.4,2909.6,5.5405]
[1765986784206,2.2243,2911.1,2909.3,2.29247965]
[1765986784420,2.2243,2910.6,2909.3,2.2206]
[1765986784727,10.0,2910.4,2909.3,2.2206]
[1765986784908,0.645,2910.3,2909.3,2.2206]
[1765986785106,2.2243,2910.7,2909.3,2.2206]
[1765986785107,0.645,2910.2,2909.3,2.2206]
[1765986785311,12.23495153,2910.8,2909.3,2.2206]
[1765986785312,0.645,2910.1,2909.3,2.2206]
[1765986785683,0.405504,2910.2,2908.9,0.002]
[1765986785915,40.46438023,2909.7,2907.5,5.5405]
[1765986786131,9.04756833,2909.8,2907.9,0.07187965]
[1765986786132,2.2243,2909.5,2907.9,0.07187965]
[1765986786433,2.2243,2909.1,2907.5,5.5405]
[1765986786620,2.2243,2909.1,2906.8,0.644]
[1765986786621,2.2243,2909.1,2906.9,5.5405]
[1765986786931,2.2243,2909.1,2907.0,5.5405]
[1765986787132,0.86643,2909.0,2907.4,5.5405]
[1765986787432,2.2243,2908.5,2905.6,5.5405]
[1765986787631,2.2243,2908.5,2907.0,5.5405]
[1765986787632,0.644,2908.5,2907.0,5.5405]
[1765986788132,0.644,2908.5,2907.3,5.5405]
[1765986788342,0.643,2908.5,2906.9,0.644]
[1765986788537,9.04756833,2909.1,2905.8,6.1835]
[1765986788538,15.4184,2908.0,2905.8,6.1835]
[1765986788831,0.46438023,2909.1,2906.9,5.6757]
[1765986788832,0.643,2908.3,2906.9,5.6757]
[1765986789332,2.1564,2910.0,2907.7,5.6757]
[1765986789532,2.1564,2909.5,2907.7,5.6757]
[1765986789764,2.1564,2909.1,2907.6,0.002]
[1765986789902,0.001,2909.6,2907.6,5.6777]
[1765986790228,0.001,2909.6,2907.9,5.6757]
[1765986790229,0.644,2909.6,2907.9,5.6757]
[1765986790430,0.001,2909.6,2907.9,5.6757]
[1765986790600,0.001,2909.6,2908.4,2.329]
[1765986790803,0.001,2910.8,2909.1,5.7913]
[1765986791035,0.001,2910.8,2909.4,2.329]
[1765986791249,10.0,2912.0,2909.2,1.10738023]
[1765986791250,2.1692,2912.1,2910.2,5.7913]
[1765986791546,2.1692,2912.1,2909.4,5.7913]
[1765986791547,2.1692,2911.5,2909.4,5.7913]
[1765986791704,2.1692,2910.8,2908.7,8.1203]
[1765986792043,0.642,2911.3,2909.3,5.7913]
[1765986792204,11.32856833,2911.0,2908.4,5.7672947]
[1765986792404,30.0,2910.3,2908.4,5.7913]
[1765986792624,30.0,2910.3,2907.7,2.329]
[1765986792625,0.642,2910.2,2908.1,5.7913]
[1765986792903,0.46438023,2910.4,2908.3,5.7913]
[1765986792904,0.642,2910.1,2908.3,5.7913]
[1765986793108,30.0,2909.8,2907.7,5.4341]
[1765986793304,0.642,2909.7,2907.8,5.4341]
[1765986793518,3.956,2909.6,2907.9,5.4341]
[1765986793719,9.04756833,2909.3,2907.6,0.002]
[1765986793928,30.642,2909.2,2907.6,0.002]
[1765986794237,2.1835,2909.4,2907.6,0.002]
[1765986794450,1.77281823,2910.4,2907.6,0.002]
[1765986794451,10.46438023,2910.0,2908.1,6.87726468]
[1765986794652,2.1835,2910.9,2908.9,0.46438023]
[1765986794820,0.641,2911.0,2908.4,0.642]
[1765986794821,2.1835,2910.3,2908.4,0.642]
[1765986795023,2.1835,2910.1,2908.4,0.642]
[1765986795216,2.1835,2910.9,2909.0,5.4341]
[1765986795422,2.1835,2910.9,2909.3,5.89848023]
[1765986795733,30.0,2911.4,2909.4,2.77657534]
[1765986795938,0.07187965,2911.5,2909.4,2.77657534]
[1765986795939,1e-08,2911.5,2910.3,0.46438023]
[1765986796109,1e-08,2911.5,2910.2,10.86477382]
[1765986796110,2.1835,2913.7,2911.5,25.346264]
[1765986796308,1.239,2914.5,2911.9,30.0]
[1765986796309,0.642,2914.0,2911.9,30.0]
[1765986796538,0.642,2914.0,2911.8,30.0]
[1765986796705,10.86477382,2914.0,2911.9,30.0]
[1765986796906,7.6593,2913.1,2911.4,0.07187965]
[1765986797140,0.001,2914.6,2911.5,0.642]
[1765986797351,5.9346,2914.4,2912.0,30.46438023]
[1765986797507,0.001,2914.6,2912.2,30.0]
[1765986797508,2.3139,2914.3,2912.2,30.0]
[1765986797707,5.9346,2914.4,2912.0,30.0]
[1765986797930,8.2485,2913.4,2912.0,23.728736]
[1765986798134,8.2485,2913.4,2912.0,30.0]
[1765986798338,5.9346,2913.2,2911.8,0.642]
[1765986798527,19.769361,2912.7,2911.0,0.07187965]
[1765986798729,19.769361,2912.7,2909.9,0.7273394]
[1765986798730,5.9346,2911.8,2909.3,0.0719]
[1765986799039,10.0,2912.3,2909.6,0.641]
[1765986799040,8.122,2911.7,2909.6,0.641]
[1765986799206,0.46438023,2912.3,2909.6,0.641]
[1765986799409,3.43224588,2913.6,2909.6,0.641]
[1765986799410,0.46438023,2912.0,2909.6,0.641]
[1765986799638,10.0,2911.8,2909.6,0.641]
[1765986799834,19.769361,2911.5,2909.6,0.641]
[1765986800037,2.3568,2911.3,2909.6,0.641]
[1765986800210,0.001,2910.8,2909.6,0.641]
[1765986800411,8.1649,2910.6,2908.9,3.50950005]
[1765986800608,9.04559,2910.6,2909.0,0.641]
[1765986800813,9.04559,2910.6,2909.1,0.03437489]
[1765986801051,0.001,2910.8,2909.1,0.53625988]
[1765986801339,0.43971767,2911.9,2909.4,11.34217782]
[1765986801340,0.36783802,2911.9,2909.4,11.34217782]
[1765986801522,0.64,2912.1,2909.8,0.405504]
[1765986801723,8.98975,2913.1,2910.5,0.405504]
[1765986802037,8.98975,2913.1,2910.1,0.07187965]
[1765986802038,5.8081,2912.5,2910.6,0.64]
[1765986802209,0.64,2912.4,2910.6,0.64]
[1765986802411,0.64,2912.4,2910.3,0.64]
[1765986802412,8.1649,2912.1,2910.3,0.64]
[1765986802612,2.3568,2912.8,2910.3,0.64]
[1765986802939,20.408361,2912.7,2910.3,0.64]
[1765986803137,8.1649,2912.5,2910.4,6.87190582]
[1765986803340,5.8081,2912.1,2909.7,0.53625988]
[1765986803526,19.769361,2911.8,2909.7,3.43677319]
[1765986803732,5.8081,2911.5,2909.7,3.78761127]
[1765986803912,5.8081,2911.5,2909.7,0.35086528]
[1765986804111,5.8081,2911.5,2909.5,0.07187965]
[1765986804341,0.639,2911.4,2909.5,0.07187965]
[1765986804542,8.1649,2911.8,2909.5,0.07187965]
[1765986804543,0.639,2911.3,2909.6,0.405504]
[1765986804732,0.46438023,2911.9,2909.5,0.07187965]
[1765986804911,5.8081,2911.7,2909.6,0.46438023]
[1765986805118,3.06767965,2911.8,2910.1,0.405504]
[1765986805119,2.3568,2911.8,2910.1,0.405504]
[1765986805312,2.3568,2911.8,2910.2,0.67336189]
[1765986805554,2.3568,2911.8,2910.2,0.639]
[1765986806828,5.8081,2911.7,2910.2,0.639]
[1765986807221,5.8081,2911.7,2909.5,0.70987965]
[1765986807533,5.8081,2911.5,2909.6,3.43685636]
[1765986807747,5.8081,2911.5,2909.5,0.70987965]
[1765986808044,6.4451,2911.4,2909.5,0.70987965]
[1765986808247,0.637,2911.3,2909.5,0.70987965]
[1765986808447,2.3568,2911.8,2909.8,0.405504]
[1765986808647,3.22948,2911.8,2909.7,0.46438023]
[1765986808864,3.22948,2911.8,2909.9,0.46438023]
[1765986809021,8.2328,2911.6,2909.7,3.43672765]
[1765986809220,19.769361,2911.5,2909.4,0.637]
[1765986809534,0.87368,2911.8,2909.8,0.46438023]
[1765986809841,0.001,2911.8,2910.3,0.0709]
[1765986810157,0.001,2911.8,2910.4,0.637]
[1765986810459,0.637,2911.8,2910.4,0.637]
[1765986810752,8.2328,2911.6,2909.8,0.636]
[1765986810954,8.2328,2911.3,2909.1,0.07187965]
[1765986811164,8.2328,2911.1,2909.2,0.10527371]
[1765986811469,1.50571802,2911.2,2909.2,0.0709]
[1765986811748,5.9226,2911.0,2909.1,0.07187965]
[1765986811958,5.9226,2911.0,2909.0,0.638]
[1765986812291,8.2328,2910.9,2909.1,0.07187965]
[1765986812463,0.635,2910.8,2909.3,0.07187965]
[1765986812753,8.2328,2911.6,2909.4,0.03437134]
[1765986812924,3.76848,2911.5,2909.9,0.07187965]
[1765986813121,3.76848,2911.5,2909.5,6.87403332]
[1765986813122,0.001,2911.8,2910.2,0.405504]
[1765986813427,0.001,2911.8,2910.5,0.07187965]
[1765986813637,12.659,2911.7,2909.8,0.635]
[1765986813834,2.3102,2911.2,2909.0,0.637]
[1765986814128,0.46438023,2910.6,2909.0,0.002]
[1765986814339,5.9226,2910.3,2909.0,0.002]
[1765986814562,2.65837412,2910.5,2909.0,0.002]
[1765986814563,5.9226,2910.2,2909.0,0.002]
[1765986814746,5.9226,2910.0,2909.0,0.002]
[1765986814956,0.635,2909.9,2909.0,0.002]
[1765986815143,5.9226,2910.0,2909.0,0.002]
[1765986815349,0.634,2909.9,2909.0,0.002]
[1765986815656,8.2328,2909.8,2909.0,0.002]
[1765986815955,0.634,2909.7,2909.0,0.002]
[1765986816163,0.634,2909.7,2907.9,0.002]
[1765986816164,5.9226,2909.3,2907.9,0.002]
[1765986816378,0.634,2909.2,2907.9,0.002]
[1765986816561,5.9226,2909.0,2907.9,0.002]
[1765986816734,5.9226,2909.0,2906.6,0.0038]
[1765986816735,0.46438023,2908.6,2906.6,0.003]
[1765986817074,0.65566,2909.1,2906.6,0.003]
[1765986817234,6.5556,2909.0,2906.6,10.86777382]
[1765986817434,5.9226,2909.0,2907.9,0.002]
[1765986817667,10.405504,2909.8,2907.9,0.002]
[1765986817668,0.633,2908.9,2907.9,0.002]
[1765986817835,6.38698023,2910.0,2907.9,0.002]
[1765986818038,6.87073216,2910.9,2907.9,0.002]
[1765986818039,5.9226,2909.2,2907.9,0.002]
[1765986818262,5.9226,2908.8,2907.9,0.002]
[1765986818573,1.22526,2909.1,2906.7,0.002]
[1765986818574,2.3102,2908.1,2906.7,0.002]
[1765986818773,0.633,2908.0,2906.7,0.002]
[1765986818950,0.633,2907.9,2906.7,0.002]
[1765986819148,8.2328,2907.7,2906.7,0.002]
[1765986819364,0.633,2907.6,2906.7,0.002]
[1765986819669,6.5546,2908.7,2906.7,2.315]
[1765986819836,6.5546,2908.7,2907.0,2.718504]
[1765986819837,0.632,2908.7,2907.0,2.718504]
[1765986820039,0.07187965,2909.1,2907.5,2.313]
[1765986820234,5.9226,2908.8,2906.5,2.313]
[1765986820459,5.9226,2908.6,2906.5,2.313]
[1765986820781,0.46438023,2909.2,2907.3,0.07187965]
[1765986821066,0.633,2909.1,2907.4,2.319]
[1765986821367,0.633,2909.0,2907.4,2.313]
[1765986821566,0.633,2908.9,2907.3,3.51146981]
[1765986821934,5.9224,2908.4,2906.7,0.002]
[1765986822138,1.38224587,2908.3,2906.7,3.44225055]
[1765986822359,12.64993604,2909.2,2906.7,3.44225055]
[1765986822360,5.9224,2909.5,2907.3,3.43961751]
[1765986822568,17.104,2909.6,2907.3,3.43961751]
[1765986822569,5.9224,2909.6,2907.9,2.313]
[1765986822776,0.633,2909.4,2907.9,2.313]
[1765986822938,0.633,2909.4,2908.9,0.07187965]
[1765986823135,0.633,2909.4,2908.7,0.07187965]
[1765986823349,1.28854,2909.4,2907.5,2.313]
[1765986823553,0.633,2909.4,2907.4,2.313]
[1765986823753,0.633,2909.4,2907.1,0.405504]
[1765986823754,0.46438023,2909.7,2908.0,2.313]
[1765986823979,0.001,2910.8,2908.6,10.86477382]
[1765986824181,0.001,2910.8,2908.8,0.86988423]
[1765986824381,0.001,2910.8,2909.4,0.405504]
[1765986824676,0.001,2910.8,2909.9,2.260104]
[1765986824880,0.001,2910.8,2910.1,0.46438023]
[1765986825080,0.70487965,2911.6,2910.1,0.46438023]
[1765986825378,8.2041,2911.3,2909.4,1.8536]
[1765986825578,8.2041,2911.3,2909.5,0.405504]
[1765986825776,0.632,2911.2,2909.9,0.46438023]
[1765986825981,5.9224,2911.3,2910.0,0.46438023]
[1765986826181,0.632,2911.2,2910.0,0.46438023]
[1765986826476,0.632,2911.2,2910.0,2.31798023]
[1765986826778,0.632,2911.2,2908.8,0.86988423]
[1765986826980,8.8361,2911.2,2909.1,1.8536]
[1765986827171,0.001,2910.8,2909.2,2.259104]
[1765986827484,0.633,2910.8,2909.2,1.8536]
[1765986827686,0.633,2910.8,2909.5,0.405504]
[1765986827852,0.632,2911.1,2909.7,0.405504]
[1765986828052,0.07187965,2911.4,2909.3,0.46438023]
[1765986828053,0.07187965,2911.4,2910.1,0.405504]
[1765986828274,0.07187965,2911.4,2909.9,0.86988423]
[1765986828275,0.001,2911.8,2910.9,0.07187965]
[1765986828580,0.001,2911.8,2910.5,0.07187965]
[1765986828756,0.59234,2911.7,2910.3,0.07187965]
[1765986828963,6.51474,2911.7,2910.1,1.7807]
[1765986829166,0.001,2912.0,2910.6,0.405504]
[1765986829394,0.001,2913.0,2911.1,0.46438023]
[1765986829688,0.631,2912.9,2911.6,0.07187965]
[1765986830251,2.9127,2912.9,2910.8,1.7787]
[1765986830476,2.2817,2912.6,2910.9,0.07187965]
[1765986830682,5.9224,2912.4,2910.9,0.07187965]
[1765986830978,5.9224,2912.4,2910.9,3.50723978]
[1765986831481,0.631,2912.3,2910.9,3.50718127]
[1765986831791,0.001,2913.0,2911.8,0.07187965]
[1765986832104,0.63,2912.9,2911.8,0.07187965]
[1765986832311,0.63,2912.9,2911.4,0.07187965]
[1765986832447,0.63,2912.9,2910.0,0.07187965]
[1765986832448,2.74608023,2912.4,2910.0,0.07187965]
[1765986832651,5.9224,2911.3,2910.0,0.07187965]
[1765986832886,5.9224,2911.1,2910.0,0.07187965]
[1765986833058,0.63,2911.6,2910.0,3.50829874]
[1765986833254,2.2817,2911.5,2910.0,0.07187965]
[1765986833569,8.2041,2911.3,2910.0,0.07187965]
[1765986833982,2.2817,2910.9,2910.0,0.07187965]
[1765986834183,8.2041,2910.6,2909.0,0.07187965]
[1765986834390,8.2041,2910.6,2908.7,1.1477]
[1765986834391,2.2817,2910.5,2908.7,1.1477]
[1765986834596,0.82041,2911.2,2909.1,1.1477]
[1765986834758,0.63,2910.9,2910.0,0.46438023]
[1765986834959,2.2817,2911.8,2910.0,0.405504]
[1765986835164,1.36108541,2912.3,2910.5,1.1477]
[1765986835165,0.63,2912.0,2910.5,1.1477]
[1765986835386,0.63,2912.0,2909.8,1.1477]
[1765986835694,8.2041,2911.4,2909.3,1.1477]
[1765986835997,2.2817,2911.2,2909.6,3.4368212]
[1765986836162,8.1541,2911.2,2909.7,0.002]
[1765986836587,0.63,2911.3,2909.7,6.87547763]
[1765986836770,0.629,2911.2,2909.8,0.405504]
[1765986836974,0.629,2911.2,2910.0,3.43642611]
[1765986837169,0.629,2911.2,2910.0,3.94058912]
[1765986837370,0.629,2911.2,2910.0,0.96854324]
[1765986837896,3.67887965,2912.4,2910.3,1.1997]
[1765986837897,5.9224,2912.1,2910.3,1.1997]
[1765986838119,5.9224,2912.1,2910.3,0.405504]
[1765986838259,5.9224,2912.0,2910.2,1.1997]
[1765986838611,6.51464,2911.9,2910.3,0.405504]
[1765986838889,0.59224,2911.9,2910.4,1.1997]
[1765986839110,6.5504,2912.2,2910.5,0.405504]
[1765986839261,6.5504,2912.2,2910.8,1.1997]
[1765986839262,0.628,2912.2,2910.8,1.1997]
[1765986839462,0.629,2913.0,2911.3,0.405504]
[1765986839662,0.629,2913.0,2911.4,0.5707]
[1765986839865,0.629,2913.0,2911.6,0.5707]
[1765986840070,5.9224,2912.8,2910.7,0.5707]
[1765986840296,5.9224,2912.6,2910.5,0.46438023]
[1765986840498,5.9224,2912.6,2910.6,0.5707]
[1765986840667,0.629,2913.0,2911.0,0.5707]
[1765986840871,0.001,2913.2,2911.3,0.405504]
[1765986841067,0.001,2913.2,2911.8,0.405504]
[1765986841499,0.001,2913.6,2911.8,0.405504]
[1765986841500,0.001,2913.6,2913.0,10.86477382]
[1765986841701,0.001,2913.6,2913.1,1.12080507]